fUSD/lending_fUSD_20260605
["ID","MTS","AMOUNT","RATE_DAILY","PERIOD"]
[424134686,1780607466000,-500.0,0.00037808,11]
[424134683,1780607466000,-500.0,0.00037808,11]
[424134689,1780607466000,-574.18,0.00037808,11]
[424134681,1780607466000,-2986.9,0.00037808,11]
[424134679,1780607466000,-3194.29,0.00037808,11]
[424134687,1780607466000,-169.01968184,0.00037808,11]
[424134688,1780607466000,-5602.37,0.00037808,11]
[424134682,1780607466000,-5109.23,0.00037808,11]
[424134677,1780607466000,-500.0,0.00037808,11]
[424134717,1780607466000,-187.729829,0.00037808,30]
[424134724,1780607466000,-646.93,0.00037808,11]
[424134725,1780607466000,-500.0,0.00037808,11]
[424134759,1780607466000,-500.0,0.00037808,11]
[424134758,1780607466000,-1515.33,0.00037808,11]
[424134760,1780607466000,-2870.25,0.00037808,11]
[424134766,1780607466000,-500.0,0.00037808,11]
[424134765,1780607466000,-500.0,0.00037808,11]
[424134761,1780607466000,-550.43,0.00037808,11]
[424134763,1780607466000,-256.57751,0.00037808,30]
[424134767,1780607466000,-500.0,0.00037808,11]
[424134764,1780607466000,-4656.83,0.00037808,11]
[424134762,1780607466000,-500.0,0.00037808,11]
[424134769,1780607466000,-1520.84,0.00037808,11]
[424134781,1780607466000,-500.0,0.00037808,11]
[424134779,1780607466000,-378.79999343,0.00037808,11]
[424134780,1780607466000,-1541.829306,0.00037808,28]
[424134775,1780607466000,-500.0,0.00037808,11]
[424134771,1780607466000,-4272.54,0.00037808,11]
[424134768,1780607466000,-256.57751,0.00037808,30]
[424134776,1780607466000,-1541.829306,0.00037808,28]
[424134773,1780607466000,-5268.13,0.00037808,11]
[424134772,1780607466000,-356.48947651,0.00037808,11]
[424134774,1780607466000,-500.0,0.00037808,11]
[424134770,1780607466000,-4095.64,0.00037808,11]
[424134778,1780607466000,-500.0,0.00037808,11]
[424134777,1780607466000,-500.0,0.00037808,11]
[424134782,1780607466000,-500.0,0.00037808,11]
[424134783,1780607466000,-696.57,0.00037808,11]
[424134728,1780607466000,-500.0,0.00037808,11]
[424134786,1780607466000,-1541.829306,0.00037808,28]
[424134785,1780607466000,-500.0,0.00037808,11]
[424134757,1780607466000,-256.57751,0.00037808,30]
[424134752,1780607466000,-539.60616335,0.00037808,11]
[424134784,1780607466000,-1070.68,0.00037808,11]
[424134751,1780607466000,-256.57751,0.00037808,30]
[424134753,1780607466000,-500.0,0.00037808,11]
[424134729,1780607466000,-151.0,0.00037808,30]
[424134721,1780607466000,-500.0,0.00037808,11]
[424134730,1780607466000,-500.0,0.00037808,11]
[424134727,1780607466000,-500.0,0.00037808,11]
[424134732,1780607466000,-2213.59,0.00037808,11]
[424134740,1780607466000,-710.84,0.00037808,11]
[424134731,1780607466000,-500.0,0.00037808,11]
[424134743,1780607466000,-592.72,0.00037808,11]
[424134741,1780607466000,-878.15,0.00037808,11]
[424134734,1780607466000,-1136.96,0.00037808,11]
[424134735,1780607466000,-500.0,0.00037808,11]
[424134739,1780607466000,-500.0,0.00037808,11]
[424134736,1780607466000,-500.0,0.00037808,11]
[424134723,1780607466000,-500.0,0.00037808,11]
[424134737,1780607466000,-6291.69,0.00037808,11]
[424134742,1780607466000,-60421.87,0.00037808,11]
[424134749,1780607466000,-2494.03,0.00037808,11]
[424134750,1780607466000,-2613.9,0.00037808,11]
[424134756,1780607466000,-500.0,0.00037808,11]
[424134745,1780607466000,-500.0,0.00037808,11]
[424134748,1780607466000,-500.0,0.00037808,11]
[424134754,1780607466000,-500.0,0.00037808,11]
[424134747,1780607466000,-500.0,0.00037808,11]
[424134746,1780607466000,-500.0,0.00037808,11]
[424134744,1780607466000,-500.0,0.00037808,11]
[424134738,1780607466000,-500.0,0.00037808,11]
[424134733,1780607466000,-500.0,0.00037808,11]
[424134755,1780607466000,-500.0,0.00037808,11]
[424134826,1780607467000,-2000.0,0.00037808,94]
[424134825,1780607467000,-2564.12,0.00037808,11]
[424134834,1780607467000,-500.0,0.00037808,11]
[424134822,1780607467000,-2000.0,0.00037808,94]
[424134815,1780607467000,-6161.84,0.00037808,11]
[424134823,1780607467000,-151.0,0.00037808,30]
[424134816,1780607467000,-4447.46,0.00037808,7]
[424134818,1780607467000,-500.0,0.00037808,11]
[424134817,1780607467000,-500.0,0.00037808,11]
[424134824,1780607467000,-3298.28,0.00037808,11]
[424134833,1780607467000,-3061.44,0.00037808,11]
[424134814,1780607467000,-28929.84,0.00037808,11]
[424134837,1780607467000,-2636.65,0.00037808,11]
[424134831,1780607467000,-500.0,0.00037808,11]
[424134828,1780607467000,-500.0,0.00037808,11]
[424134829,1780607467000,-2625.55,0.00037808,11]
[424134830,1780607467000,-500.0,0.00037808,11]
[424134832,1780607467000,-41097.1,0.00037808,11]
[424134835,1780607467000,-154.930219,0.00037808,30]
[424134838,1780607467000,-335.38637951,0.00037808,11]
[424134836,1780607467000,-500.0,0.00037808,11]
[424134843,1780607467000,-4385.53,0.00037808,11]
[424134845,1780607467000,-5003.27,0.00037808,11]
[424134847,1780607467000,-4478.44,0.00037808,11]
[424134846,1780607467000,-151.0,0.00037808,30]
[424134820,1780607467000,-500.0,0.00037808,11]
[424134827,1780607467000,-500.0,0.00037808,11]
[424134819,1780607467000,-2404.02,0.00037808,11]
[424134801,1780607467000,-3491.73,0.00037808,11]
[424134811,1780607467000,-500.0,0.00037808,11]
[424134844,1780607467000,-500.0,0.00037808,11]
[424134794,1780607467000,-500.0,0.00037808,11]
[424134793,1780607467000,-1541.829306,0.00037808,28]
[424134790,1780607467000,-7481.71,0.00037808,11]
[424134787,1780607467000,-8231.59,0.00037808,11]
[424134791,1780607467000,-500.0,0.00037808,11]
[424134788,1780607467000,-500.0,0.00037808,11]
[424134789,1780607467000,-500.0,0.00037808,11]
[424134792,1780607467000,-2885.57,0.00037808,11]
[424134806,1780607467000,-3702.47,0.00037808,11]
[424134796,1780607467000,-500.0,0.00037808,11]
[424134807,1780607467000,-500.0,0.00037808,11]
[424134812,1780607467000,-500.0,0.00037808,11]
[424134795,1780607467000,-500.0,0.00037808,11]
[424134805,1780607467000,-500.0,0.00037808,11]
[424134797,1780607467000,-500.0,0.00037808,11]
[424134800,1780607467000,-500.0,0.00037808,11]
[424134799,1780607467000,-500.0,0.00037808,11]
[424134804,1780607467000,-3854.17,0.00037808,11]
[424134803,1780607467000,-7462.52,0.00037808,11]
[424134802,1780607467000,-500.0,0.00037808,11]
[424134808,1780607467000,-500.0,0.00037808,11]
[424134821,1780607467000,-500.0,0.00037808,11]
[424134813,1780607467000,-500.0,0.00037808,11]
[424134809,1780607467000,-683.5,0.00037808,11]
[424134810,1780607467000,-500.0,0.00037808,11]
[424134798,1780607467000,-3629.92,0.00037808,11]
[424134842,1780607467000,-3072.47,0.00037808,11]
[424134901,1780607467000,-6377.55,0.00037808,11]
[424134841,1780607467000,-3000.27,0.00037808,11]
[424134877,1780607467000,-3563.89,0.00037808,11]
[424134878,1780607467000,-531.93,0.00037808,11]
[424134881,1780607467000,-665.08,0.00037808,11]
[424134880,1780607467000,-500.0,0.00037808,11]
[424134884,1780607467000,-3412.16,0.00037808,11]
[424134882,1780607467000,-3546.02,0.00037808,11]
[424134883,1780607467000,-3494.2,0.00037808,11]
[424134879,1780607467000,-500.0,0.00037808,2]
[424134886,1780607467000,-500.0,0.00037808,11]
[424134888,1780607467000,-500.0,0.00037808,11]
[424134885,1780607467000,-3628.99,0.00037808,11]
[424134887,1780607467000,-9429.18,0.00037808,11]
[424134875,1780607467000,-500.0,0.00037808,11]
[424134891,1780607467000,-6206.91,0.00037808,11]
[424134890,1780607467000,-500.0,0.00037808,11]
[424134894,1780607467000,-500.0,0.00037808,11]
[424134896,1780607467000,-500.0,0.00037808,11]
[424134895,1780607467000,-500.0,0.00037808,11]
[424134893,1780607467000,-8627.97,0.00037808,11]
[424134897,1780607467000,-2900.38,0.00037808,11]
[424134892,1780607467000,-624.6585259,0.00037808,11]
[424134899,1780607467000,-718.88,0.00037808,11]
[424134898,1780607467000,-500.0,0.00037808,11]
[424134902,1780607467000,-500.0,0.00037808,11]
[424134903,1780607467000,-500.0,0.00037808,11]
[424134839,1780607467000,-500.0,0.00037808,11]
[424134900,1780607467000,-533.68,0.00037808,11]
[424134876,1780607467000,-500.0,0.00037808,11]
[424134889,1780607467000,-9837.19,0.00037808,11]
[424134869,1780607467000,-674.62,0.00037808,11]
[424134840,1780607467000,-500.0,0.00037808,11]
[424134874,1780607467000,-500.0,0.00037808,11]
[424134849,1780607467000,-500.0,0.00037808,11]
[424134850,1780607467000,-1928.99,0.00037808,11]
[424134859,1780607467000,-500.0,0.00037808,11]
[424134861,1780607467000,-500.0,0.00037808,11]
[424134848,1780607467000,-500.0,0.00037808,11]
[424134852,1780607467000,-500.0,0.00037808,11]
[424134851,1780607467000,-500.0,0.00037808,11]
[424134853,1780607467000,-578.29,0.00037808,11]
[424134856,1780607467000,-500.0,0.00037808,11]
[424134854,1780607467000,-151.0,0.00037808,30]
[424134855,1780607467000,-500.0,0.00037808,11]
[424134860,1780607467000,-500.0,0.00037808,11]
[424134871,1780607467000,-500.0,0.00037808,11]
[424134872,1780607467000,-3569.41,0.00037808,11]
[424134857,1780607467000,-197.23010062,0.00037808,11]
[424134870,1780607467000,-728.56,0.00037808,11]
[424134866,1780607467000,-500.0,0.00037808,11]
[424134873,1780607467000,-500.0,0.00037808,11]
[424134868,1780607467000,-500.0,0.00037808,11]
[424134865,1780607467000,-500.0,0.00037808,11]
[424134867,1780607467000,-500.0,0.00037808,11]
[424134864,1780607467000,-500.0,0.00037808,11]
[424134862,1780607467000,-876.27,0.00037808,11]
[424134858,1780607467000,-7726.77,0.00037808,11]
[424134863,1780607467000,-3691.76,0.00037808,11]
[424134947,1780607468000,-500.0,0.00037808,11]
[424134943,1780607468000,-3112.66,0.00037808,11]
[424134948,1780607468000,-595.3,0.00037808,11]
[424134946,1780607468000,-151.0,0.00037808,30]
[424134945,1780607468000,-500.0,0.00037808,11]
[424134944,1780607468000,-151.0,0.00037808,30]
[424134937,1780607468000,-341.51157658,0.00037808,11]
[424134941,1780607468000,-500.0,0.00037808,11]
[424134942,1780607468000,-500.0,0.00037808,11]
[424134939,1780607468000,-1171.82,0.00037808,11]
[424134940,1780607468000,-151.0,0.00037808,30]
[424134949,1780607468000,-15890.34,0.00037808,11]
[424134938,1780607468000,-4348.87,0.00037808,11]
[424134951,1780607468000,-500.0,0.00037808,11]
[424134963,1780607468000,-500.0,0.00037808,11]
[424134950,1780607468000,-500.0,0.00037808,11]
[424134961,1780607468000,-3576.54,0.00037808,11]
[424134958,1780607468000,-500.0,0.00037808,11]
[424134952,1780607468000,-500.0,0.00037808,11]
[424134954,1780607468000,-561.85,0.00037808,11]
[424134956,1780607468000,-500.0,0.00037808,11]
[424134953,1780607468000,-500.0,0.00037808,11]
[424134955,1780607468000,-4798.39,0.00037808,11]
[424134957,1780607468000,-3339.36,0.00037808,11]
[424134960,1780607468000,-500.0,0.00037808,11]
[424134959,1780607468000,-4334.54,0.00037808,11]
[424134967,1780607468000,-500.0,0.00037808,11]
[424134930,1780607468000,-2411.26,0.00037808,11]
[424134962,1780607468000,-500.0,0.00037808,11]
[424134929,1780607468000,-500.0,0.00037808,11]
[424134912,1780607468000,-500.0,0.00037808,11]
[424134927,1780607468000,-500.0,0.00037808,11]
[424134909,1780607468000,-500.0,0.00037808,11]
[424134904,1780607468000,-3104.62,0.00037808,11]
[424134907,1780607468000,-4154.75,0.00037808,11]
[424134908,1780607468000,-500.0,0.00037808,11]
[424134905,1780607468000,-500.0,0.00037808,11]
[424134906,1780607468000,-500.0,0.00037808,11]
[424134910,1780607468000,-500.0,0.00037808,11]
[424134911,1780607468000,-12422.13,0.00037808,11]
[424134915,1780607468000,-953.86,0.00037808,10]
[424134913,1780607468000,-500.0,0.00037808,11]
[424134916,1780607468000,-500.0,0.00037808,11]
[424134965,1780607468000,-500.0,0.00037808,11]
[424134917,1780607468000,-719.33,0.00037808,7]
[424134933,1780607468000,-4510.34,0.00037808,11]
[424134914,1780607468000,-599.42583494,0.00037808,11]
[424134919,1780607468000,-3101.67,0.00037808,11]
[424134921,1780607468000,-500.0,0.00037808,11]
[424134922,1780607468000,-500.0,0.00037808,11]
[424134923,1780607468000,-5779.59,0.00037808,11]
[424134924,1780607468000,-4647.15,0.00037808,11]
[424134926,1780607468000,-500.0,0.00037808,11]
[424134925,1780607468000,-500.0,0.00037808,11]
[424134936,1780607468000,-500.0,0.00037808,11]
[424134934,1780607468000,-500.0,0.00037808,11]
[424134935,1780607468000,-523.05,0.00037808,11]
[424134931,1780607468000,-500.0,0.00037808,11]
[424134928,1780607468000,-500.0,0.00037808,11]
[424134932,1780607468000,-500.0,0.00037808,11]
[424134920,1780607468000,-2831.2,0.00037808,11]
[424134966,1780607468000,-500.0,0.00037808,11]
[424134918,1780607468000,-500.0,0.00037808,11]
[424134972,1780607468000,-2873.09,0.00037808,11]
[424134996,1780607468000,-834.811559,0.00037808,7]
[424134997,1780607468000,-500.0,0.00037808,11]
[424135005,1780607468000,-500.0,0.00037808,11]
[424135015,1780607468000,-633.72,0.00037808,11]
[424135004,1780607468000,-500.0,0.00037808,3]
[424135007,1780607468000,-558.09,0.00037808,11]
[424135006,1780607468000,-500.0,0.00037808,11]
[424135008,1780607468000,-500.0,0.00037808,11]
[424135009,1780607468000,-500.0,0.00037808,11]
[424135011,1780607468000,-500.0,0.00037808,11]
[424135013,1780607468000,-601.14,0.00037808,11]
[424135012,1780607468000,-151.0,0.00037808,30]
[424135010,1780607468000,-2024.03,0.00037808,11]
[424134998,1780607468000,-4507.58,0.00037808,11]
[424135014,1780607468000,-500.0,0.00037808,11]
[424135018,1780607468000,-8451.65,0.00037808,11]
[424135019,1780607468000,-500.0,0.00037808,11]
[424135020,1780607468000,-500.0,0.00037808,11]
[424135017,1780607468000,-500.0,0.00037808,11]
[424135022,1780607468000,-500.0,0.00037808,11]
[424135027,1780607468000,-2685.34,0.00037808,11]
[424135021,1780607468000,-500.0,0.00037808,11]
[424135024,1780607468000,-6469.94,0.00037808,11]
[424135025,1780607468000,-500.0,0.00037808,11]
[424135026,1780607468000,-757.35,0.00037808,11]
[424135023,1780607468000,-500.0,0.00037808,11]
[424135029,1780607468000,-2401.0,0.00037808,11]
[424135028,1780607468000,-6296.36,0.00037808,11]
[424135016,1780607468000,-151.0,0.00037808,30]
[424134995,1780607468000,-4107.63,0.00037808,11]
[424134964,1780607468000,-500.0,0.00037808,11]
[424134994,1780607468000,-834.811559,0.00037808,7]
[424134969,1780607468000,-9643.11,0.00037808,11]
[424134968,1780607468000,-4311.22,0.00037808,11]
[424134970,1780607468000,-500.0,0.00037808,11]
[424134973,1780607468000,-500.0,0.00037808,11]
[424134974,1780607468000,-3337.69,0.00037808,11]
[424134976,1780607468000,-524.18,0.00037808,11]
[424134971,1780607468000,-500.0,0.00037808,11]
[424134975,1780607468000,-3336.46,0.00037808,11]
[424134992,1780607468000,-500.0,0.00037808,11]
[424134989,1780607468000,-500.0,0.00037808,11]
[424134988,1780607468000,-834.811559,0.00037808,7]
[424134979,1780607468000,-500.0,0.00037808,11]
[424134980,1780607468000,-702.74,0.00037808,11]
[424134985,1780607468000,-6996.9,0.00037808,11]
[424134978,1780607468000,-500.0,0.00037808,11]
[424134977,1780607468000,-3359.97,0.00037808,11]
[424134987,1780607468000,-571.38,0.00037808,11]
[424134993,1780607468000,-3790.95,0.00037808,11]
[424135002,1780607468000,-3178.87,0.00037808,11]
[424134990,1780607468000,-4650.59,0.00037808,11]
[424135003,1780607468000,-2829.34,0.00037808,11]
[424135000,1780607468000,-500.0,0.00037808,11]
[424135001,1780607468000,-834.811559,0.00037808,7]
[424134991,1780607468000,-1136.83,0.00037808,11]
[424134982,1780607468000,-500.0,0.00037808,11]
[424134986,1780607468000,-3111.92,0.00037808,11]
[424134984,1780607468000,-500.0,0.00037808,11]
[424134983,1780607468000,-3032.7,0.00037808,11]
[424134981,1780607468000,-500.0,0.00037808,11]
[424134999,1780607468000,-500.0,0.00037808,11]
[424135080,1780607469000,-500.0,0.00037808,11]
[424135072,1780607469000,-749.673451,0.00037808,30]
[424135071,1780607469000,-500.0,0.00037808,11]
[424135074,1780607469000,-509.05105614,0.00037808,11]
[424135075,1780607469000,-749.673451,0.00037808,30]
[424135061,1780607469000,-500.0,0.00037808,11]
[424135069,1780607469000,-500.0,0.00037808,11]
[424135068,1780607469000,-7429.85,0.00037808,11]
[424135062,1780607469000,-500.0,0.00037808,11]
[424135064,1780607469000,-500.0,0.00037808,11]
[424135063,1780607469000,-3857.65,0.00037808,11]
[424135070,1780607469000,-631.71,0.00037808,11]
[424135078,1780607469000,-4600.9,0.00037808,11]
[424135087,1780607469000,-546.54069716,0.00037808,11]
[424135076,1780607469000,-4425.91,0.00037808,11]
[424135081,1780607469000,-500.0,0.00037808,11]
[424135073,1780607469000,-5259.59,0.00037808,11]
[424135077,1780607469000,-543.36,0.00037808,11]
[424135083,1780607469000,-749.673451,0.00037808,30]
[424135094,1780607469000,-500.0,0.00037808,11]
[424135093,1780607469000,-4252.57,0.00037808,11]
[424135084,1780607469000,-3491.63,0.00037808,11]
[424135085,1780607469000,-2173.31,0.00037808,11]
[424135082,1780607469000,-4400.8,0.00037808,11]
[424135086,1780607469000,-648.06,0.00037808,11]
[424135090,1780607469000,-500.0,0.00037808,11]
[424135092,1780607469000,-4490.65,0.00037808,11]
[424135058,1780607469000,-4545.69,0.00037808,11]
[424135079,1780607469000,-749.673451,0.00037808,30]
[424135067,1780607469000,-500.0,0.00037808,11]
[424135045,1780607469000,-500.0,0.00037808,11]
[424135054,1780607469000,-500.0,0.00037808,11]
[424135089,1780607469000,-3896.22,0.00037808,11]
[424135033,1780607469000,-500.0,0.00037808,11]
[424135031,1780607469000,-429.98886186,0.00037808,11]
[424135032,1780607469000,-500.0,0.00037808,11]
[424135040,1780607469000,-557.281833,0.00037808,30]
[424135044,1780607469000,-12334.13,0.00037808,11]
[424135053,1780607469000,-667.01,0.00037808,11]
[424135042,1780607469000,-151.0,0.00037808,30]
[424135030,1780607469000,-500.0,0.00037808,11]
[424135047,1780607469000,-500.0,0.00037808,11]
[424135049,1780607469000,-518.51,0.00037808,11]
[424135038,1780607469000,-11634.89,0.00037808,11]
[424135041,1780607469000,-3048.3,0.00037808,11]
[424135046,1780607469000,-2357.35,0.00037808,11]
[424135043,1780607469000,-557.281833,0.00037808,30]
[424135035,1780607469000,-187.54763363,0.00037808,11]
[424135039,1780607469000,-500.0,0.00037808,11]
[424135036,1780607469000,-557.281833,0.00037808,30]
[424135037,1780607469000,-500.0,0.00037808,11]
[424135048,1780607469000,-557.281833,0.00037808,30]
[424135034,1780607469000,-3072.94,0.00037808,11]
[424135050,1780607469000,-520.25181531,0.00037808,11]
[424135051,1780607469000,-500.0,0.00037808,11]
[424135055,1780607469000,-500.0,0.00037808,11]
[424135066,1780607469000,-620.29314652,0.00037808,11]
[424135057,1780607469000,-500.0,0.00037808,11]
[424135060,1780607469000,-4751.19,0.00037808,11]
[424135056,1780607469000,-4887.15,0.00037808,11]
[424135059,1780607469000,-1942.96,0.00037808,11]
[424135065,1780607469000,-500.0,0.00037808,11]
[424135091,1780607469000,-500.0,0.00037808,11]
[424135052,1780607469000,-500.0,0.00037808,11]
[424135095,1780607469000,-513.38,0.00037808,11]
[424135128,1780607469000,-176.332657,0.00037808,7]
[424135127,1780607469000,-176.332657,0.00037808,7]
[424135122,1780607469000,-151.0,0.00037808,30]
[424135141,1780607469000,-237.598218,0.00037808,30]
[424135143,1780607469000,-237.598218,0.00037808,30]
[424135132,1780607469000,-176.332657,0.00037808,7]
[424135144,1780607469000,-237.598218,0.00037808,30]
[424135142,1780607469000,-237.598218,0.00037808,30]
[424135139,1780607469000,-151.0,0.00037808,30]
[424135138,1780607469000,-151.0,0.00037808,30]
[424135136,1780607469000,-176.332657,0.00037808,7]
[424135135,1780607469000,-176.332657,0.00037808,7]
[424135133,1780607469000,-176.332657,0.00037808,7]
[424135134,1780607469000,-176.332657,0.00037808,7]
[424135140,1780607469000,-175.196878,0.00037808,30]
[424135137,1780607469000,-151.0,0.00037808,30]
[424135145,1780607469000,-237.598218,0.00037808,30]
[424135156,1780607469000,-3945.62908,0.00037808,30]
[424135155,1780607469000,-3945.62908,0.00037808,30]
[424135148,1780607469000,-237.598218,0.00037808,30]
[424135149,1780607469000,-237.598218,0.00037808,30]
[424135147,1780607469000,-237.598218,0.00037808,30]
[424135146,1780607469000,-237.598218,0.00037808,30]
[424135153,1780607469000,-3945.62908,0.00037808,30]
[424135088,1780607469000,-5178.13,0.00037808,11]
[424135150,1780607469000,-237.598218,0.00037808,30]
[424135151,1780607469000,-237.598218,0.00037808,30]
[424135152,1780607469000,-237.598218,0.00037808,30]
[424135154,1780607469000,-3945.62908,0.00037808,30]
[424135126,1780607469000,-176.332657,0.00037808,7]
[424135124,1780607469000,-157.848844,0.00037808,30]
[424135157,1780607469000,-3945.62908,0.00037808,30]
[424135119,1780607469000,-3001.73,0.00037808,11]
[424135129,1780607469000,-176.332657,0.00037808,7]
[424135096,1780607469000,-500.0,0.00037808,11]
[424135100,1780607469000,-15648.77,0.00037808,11]
[424135099,1780607469000,-500.0,0.00037808,11]
[424135101,1780607469000,-4440.1,0.00037808,11]
[424135097,1780607469000,-500.0,0.00037808,11]
[424135102,1780607469000,-500.0,0.00037808,11]
[424135103,1780607469000,-2997.46,0.00037808,11]
[424135105,1780607469000,-500.0,0.00037808,11]
[424135104,1780607469000,-500.0,0.00037808,11]
[424135118,1780607469000,-500.0,0.00037808,11]
[424135107,1780607469000,-397.8575858,0.00037808,11]
[424135117,1780607469000,-5211.17,0.00037808,11]
[424135106,1780607469000,-500.0,0.00037808,11]
[424135098,1780607469000,-500.0,0.00037808,11]
[424135113,1780607469000,-4028.7,0.00037808,11]
[424135110,1780607469000,-1243.01,0.00037808,11]
[424135121,1780607469000,-300.0,0.00037808,47]
[424135130,1780607469000,-176.332657,0.00037808,7]
[424135131,1780607469000,-176.332657,0.00037808,7]
[424135120,1780607469000,-500.0,0.00037808,11]
[424135116,1780607469000,-1666.07,0.00037808,11]
[424135123,1780607469000,-151.0,0.00037808,30]
[424135111,1780607469000,-582.54308701,0.00037808,11]
[424135115,1780607469000,-500.0,0.00037808,11]
[424135114,1780607469000,-2827.17,0.00037808,11]
[424135125,1780607469000,-176.332657,0.00037808,7]
[424135109,1780607469000,-500.0,0.00037808,11]
[424135108,1780607469000,-3145.9,0.00037808,11]
[424135112,1780607469000,-500.0,0.00037808,11]
[424135184,1780607470000,-1114.18,0.00037862,7]
[424135196,1780607470000,-220.61590571,0.00037863,11]
[424135187,1780607470000,-630.74710949,0.00037862,11]
[424135192,1780607470000,-500.0,0.00037863,11]
[424135189,1780607470000,-509.05105614,0.00037863,11]
[424135188,1780607470000,-520.25181531,0.00037863,11]
[424135190,1780607470000,-567.95383882,0.00037863,11]
[424135191,1780607470000,-500.0,0.00037863,11]
[424135195,1780607470000,-500.0,0.00037863,11]
[424135197,1780607470000,-500.0,0.00037863,11]
[424135201,1780607470000,-500.0,0.00037863,11]
[424135186,1780607470000,-1114.22,0.00037862,7]
[424135206,1780607470000,-500.0,0.00037863,11]
[424135199,1780607470000,-500.0,0.00037863,11]
[424135205,1780607470000,-500.0,0.00037863,11]
[424135198,1780607470000,-500.0,0.00037863,11]
[424135200,1780607470000,-500.0,0.00037863,11]
[424135202,1780607470000,-500.0,0.00037863,11]
[424135203,1780607470000,-500.0,0.00037863,11]
[424135204,1780607470000,-500.0,0.00037863,11]
[424135209,1780607470000,-500.0,0.00037863,11]
[424135210,1780607470000,-500.0,0.00037863,11]
[424135208,1780607470000,-500.0,0.00037863,11]
[424135185,1780607470000,-1114.18,0.00037862,7]
[424135207,1780607470000,-500.0,0.00037863,11]
[424135182,1780607470000,-1114.18,0.00037862,7]
[424135170,1780607470000,-152.0,0.00037815,30]
[424135183,1780607470000,-1114.18,0.00037862,7]
[424135159,1780607470000,-3945.62908,0.00037808,30]
[424135169,1780607470000,-152.0,0.00037815,30]
[424135158,1780607470000,-3945.62908,0.00037808,30]
[424135163,1780607470000,-3945.62908,0.00037808,30]
[424135162,1780607470000,-3945.62908,0.00037808,30]
[424135160,1780607470000,-3945.62908,0.00037808,30]
[424135161,1780607470000,-3945.62908,0.00037808,30]
[424135166,1780607470000,-151.0,0.00037808,30]
[424135167,1780607470000,-219.275614,0.00037808,30]
[424135168,1780607470000,-152.0,0.00037815,30]
[424135165,1780607470000,-155.813295,0.00037808,30]
[424135194,1780607470000,-500.0,0.00037863,11]
[424135164,1780607470000,-3945.62908,0.00037808,30]
[424135176,1780607470000,-300.0,0.00037829,3]
[424135175,1780607470000,-157.0,0.00037825,120]
[424135173,1780607470000,-1592.0,0.00037824,11]
[424135172,1780607470000,-2320.0,0.00037824,11]
[424135174,1780607470000,-150.0,0.00037825,120]
[424135177,1780607470000,-164.0,0.00037853,11]
[424135180,1780607470000,-1114.18,0.00037862,7]
[424135179,1780607470000,-152.0,0.0003786,6]
[424135181,1780607470000,-1114.18,0.00037862,7]
[424135178,1780607470000,-2320.0,0.00037853,11]
[424135193,1780607470000,-500.0,0.00037863,11]
[424135171,1780607470000,-256.10544331,0.00037817,2]
[424135212,1780607470000,-500.0,0.00037863,11]
[424135211,1780607470000,-451.04849908,0.00037863,11]